Cogmind - Beta 16.1 @@@ ROGUE MODE // 2026.03.24 @ 23:13:38 Player: alice_fexa Result: Destroyed by Y8-BWU(R) with Subdweller Laser Performance ------------- Evolutions (0) 0 Regions Visited (2) 400 Robots Destroyed (23) 115 Value Destroyed (425) 425 Prototype IDs (0) 0 Alien Tech Used (0) 0 Bonus (0) 0 TOTAL SCORE: 940 Bonus ------- None Cogmind --------- Core Integrity 0/250 Matter 186/300 Energy 100/100 System Corruption 2% Temperature Cool (6) Movement Treading (320) Ox2 Location -10/Subcaves Parts ------- > --- POWER (1) -------- (None) > --- PROPULSION (2) --- Light Treads > --- UTILITY (2) ------ Heat Sink High-capacity Storage Unit > --- WEAPON (2) ------- Heavy Battle Rifle Light Cannon > --- INVENTORY (20) --- Ion Engine Light Nuclear Core Wheel Flight Unit Flight Unit Flight Unit Flight Unit Flight Unit Heat Sink Medium Matter Pod (100) Seismic Detector Makeshift Light Armor Plating Medium Laser Assault Rifle Assault Rifle Light Assault Rifle Light Cannon Grenade Launcher Peak State ------------ > --- POWER ------------ Light Ion Engine > --- PROPULSION ------- Light Treads Wheel > --- UTILITY ---------- High-capacity Storage Unit Seismic Detector > --- WEAPON ----------- Particle Gun Heavy Battle Rifle > --- INVENTORY -------- Ion Engine Light Nuclear Core Light Treads Wheel Flight Unit Flight Unit Flight Unit Flight Unit Flight Unit Heat Sink Heat Sink Medium Matter Pod Makeshift Light Armor Plating Medium Laser Assault Rifle Assault Rifle Light Assault Rifle Light Cannon Light Cannon Grenade Launcher [Rating: 13] Favorites ----------- Power Light Ion Engine Engine Light Ion Engine Propulsion Light Treads Treads Light Treads Wheel Wheel Utility High-capacity Storage Unit Device Heat Sink Storage High-capacity Storage Unit Weapon Medium Laser Energy Gun Medium Laser Ballistic Gun Assault Rifle Ballistic Cannon Light Cannon Build | -11 -10 -10 ------- Run | Yrd Mat Sub Slots Evolved . | . . . Power . | . . . Propulsion . | . . . Utility . | . . . Weapon . | . . . Parts Attached 28 | 6 18 4 Power 5 | 1 4 . Engine 5 | 1 4 . Core . | . . . Reactor . | . . . Propulsion 8 | 2 5 1 Treads 4 | 2 1 1 Leg . | . . . Wheel 4 | . 4 . Hover . | . . . Flight . | . . . Utility 8 | 1 6 1 Device 6 | . 5 1 Storage 2 | 1 1 . Processor . | . . . Hackware . | . . . Protection . | . . . Artifact . | . . . Weapon 7 | 2 3 2 Energy Gun 4 | 1 3 . Energy Cannon . | . . . Ballistic Gun 2 | 1 . 1 Ballistic Cannon 1 | . . 1 Launcher . | . . . Special Weapon . | . . . Impact Weapon . | . . . Slashing Weapon . | . . . Piercing Weapon . | . . . Special Melee Weapon . | . . . Unidentified Prototypes . | . . . Parts Lost 8 | . 4 4 Power 3 | . 2 1 Propulsion 3 | . 1 2 Utility 1 | . 1 . Weapon 1 | . . 1 Highest Loss Streak 4 | . 2 4 To Critical Strikes 1 | . . 1 Average Backups 15 | 2 16 19 Power 2 | . 2 2 Propulsion 5 | 1 5 7 Utility 2 | . 3 3 Weapon 5 | . 5 6 Tool/Special . | . . . Unused Backups 22 | . 7 15 Power 6 | . 4 2 Propulsion 6 | . . 6 Utility 3 | . . 3 Weapon 7 | . 3 4 Tool/Special . | . . . Average Slot Usage (%) 97 | . 97 96 Engine 13 | . 14 13 Treads 14 | . 14 14 Wheel 13 | . 13 11 Device 12 | . 11 14 Storage 14 | . 14 14 Energy Gun 24 | . 25 16 Ballistic Gun 2 | . 2 8 Peak Build Rating 13 | 6 12 13 Average Rating 9 | 5 9 11 On Entrance 5 | . 6 10 Avg Prop Armor Cover (%) 13 | . 13 12 Naked Turns . | . . . Heaviest Build 51 | 12 51 51 Greatest Support 40 | 40 40 10 Greatest Overweight (x) 5 | . 5 5 Average Overweight (x) 3 | . 3 4 Largest Inventory Capacity 20 | 8 20 20 Average Capacity 18 | 7 19 20 Most Carried 20 | 5 20 20 Average Carried 15 | 2 16 19 Final Capacity 20 | 8 20 20 Final Carried 20 | 5 20 18 Class Distribution -------------------- 86% | Mutant 13% | Scavenger-Mutant Dominant Class ---------------- Mutant | -10/Materials Mutant | -10/Subcaves Resources | -11 -10 -10 ----------- Run | Yrd Mat Sub Matter Collected 595 | 278 317 . Remotely . | . . . Salvage Created 730 | 71 644 15 Parts 46 | 6 39 1 Haulers Intercepted 2 | . 2 . Recyclers Shooed 1 | . 1 . Parts Field Recycled . | . . . Retrieved Matter . | . . . Parts Self-Destructed 5 | . . 5 Prevented . | . . . Parts Restored . | . . . Kills | -11 -10 -10 ------- Run | Yrd Mat Sub Combat Hostiles Destroyed 14 | . 13 1 Guns 11 | . 10 1 Classes Destroyed 10 | 2 7 1 Worker 1 | . 1 . Builder 1 | . 1 . Tunneler 1 | 1 . . Hauler 2 | . 2 . Recycler 2 | 1 1 . Operator 1 | . 1 . Watcher 1 | . 1 . Swarmer 6 | . 6 . Grunt 7 | . 7 . Subdweller 1 | . . 1 Best Kill Streak 4 | 1 4 1 Combat Bots Only 4 | . 4 1 Max Kills in Single Turn 2 | 1 2 1 Gunslinging 1 | . 1 . Exploded . | . . . Melee . | . . . Uniques/NPCs Destroyed . | . . . Combat | -11 -10 -10 -------- Run | Yrd Mat Sub Hostile Shots Fired 92 | . 46 46 Missed 24 | . 13 11 Hits 68 | . 33 35 Projectile 68 | . 33 35 Critical Strikes 4 | . 2 2 Damage Taken 1135 | . 428 707 Core 256 | . 112 144 Absorbed by Shields . | . . . Core Remaining (%) 100 | 100 . . Volleys Fired 75 | 6 55 14 Largest 2 | 2 2 2 Hottest 115 | 70 115 98 Shots Fired 149 | 12 109 28 Gun 141 | 12 109 20 Cannon 8 | . . 8 Launcher . | . . . Special . | . . . Kinetic 35 | 6 7 22 Thermal 114 | 6 102 6 Explosive . | . . . Electromagnetic . | . . . Robot Hit Streak 30 | 3 30 16 Robot Miss Streak 4 | 1 4 2 Penetration Max . | . . . Secondary Targets 2 | . 2 . Max Gunslinging Chain 1 | . 1 . Shots Hit Robots 117 | 7 88 22 Core Hits 31 | 3 26 2 Critical Kills . | . . . Critical Parts Destroyed . | . . . Critical Strikes 6 | . 6 . Burn 6 | . 6 . Melee Attacks . | . . . Impact . | . . . Slashing . | . . . Piercing . | . . . Sneak Attacks . | . . . Combat Hostiles . | . . . Follow-up Attacks . | . . . Damage Inflicted 1679 | 89 1186 404 Guns 1550 | 89 1186 275 Cannons 129 | . . 129 Explosions . | . . . Melee . | . . . Ramming . | . . . Kinetic 456 | 52 83 321 Thermal 1223 | 37 1103 83 Explosive . | . . . Electromagnetic . | . . . Impact . | . . . Slashing . | . . . Piercing . | . . . Highest Corruption 2 | . 2 2 Average Corruption 2 | . 2 2 Corruption Purged . | . . . Corruption Blocked . | . . . Effects 15 | . 14 1 Message Errors 5 | . 5 . Matter Fused 2 | . 2 . Heat Flow Errors 2 | . 1 1 Energy Discharges 1 | . 1 . Data Loss (minor) 1 | . 1 . Data Loss (major) 3 | . 3 . Weapon Failures 1 | . 1 . Overload Shots . | . . . Overflow Damage . | . . . Projectiles . | . . . Explosions . | . . . Melee . | . . . Knockbacks 5 | . . 5 Impact . | . . . Kinetic 5 | . . 5 Secondary . | . . . Self-Inflicted Damage . | . . . Shots . | . . . Rammed . | . . . Targets Rammed . | . . . Kicked . | . . . Crushed . | . . . Highest Temperature 222 | 36 222 114 Average Temperature 36 | 16 37 64 Received Heat Transfer 306 | . 180 126 Siege Activations . | . . . Martial Activations . | . . . Shielding Activations . | . . . Robots Disrupted . | . . . Combat Hostiles . | . . . Robots Corrupted . | . . . Combat Hostiles . | . . . Parts Fried . | . . . Impact Corruptions . | . . . Robots Melted 4 | . 4 . Combat Hostiles 3 | . 3 . Parts Melted 6 | . 6 . Heat Transferred 3811 | 111 3515 185 Parts Sabotaged . | . . . Parts Stolen . | . . . Parts Stripped . | . . . Power Chain Reactions . | . . . Alert | -11 -10 -10 ------- Run | Yrd Mat Sub Maximum Alert Level . | . . . Low Security (%) 100 | 100 100 . Level 1 . | . . . Level 2 . | . . . Level 3 . | . . . Level 4 . | . . . Level 5 . | . . . High Security . | . . . Max Security . | . . . Peak Influence 104 | 5 104 . Initial 3 | . 3 . Average 39 | . 42 . Influence Increases 440 | 10 430 . Destroy 0b10 Robot/C 260 | . 260 . Destroy 0b10 Robot/NC 45 | 10 35 . Destroy Leader 66 | . 66 . Successful Hack 37 | . 37 . Destroy Structure 2 | . 2 . Lose Combat Pursuer 30 | . 30 . Influence Decreases 440 | 5 435 . Entered New Map 2 | . 2 . Time Decay 398 | 5 393 . Lost Part 40 | . 40 . Squads Dispatched 2 | . 2 . Investigation . | . . . Extermination . | . . . Reinforcement 2 | . 2 . Assault . | . . . Garrison . | . . . Intercept . | . . . Searches Triggered . | . . . Construction Impeded . | . . . Haulers Reinforced . | . . . Active Scanning Responses . | . . . Cargo Convoy Interrupts . | . . . Stealth | -11 -10 -10 --------- Run | Yrd Mat Sub Distress Signals 1 | . 1 . Communications Jammed . | . . . Distress Signals . | . . . Times Spotted 29 | . 26 3 Peak Tracking Total 4 | . 4 3 Tactical Retreats 1 | . 1 . Traps | -11 -10 -10 ------- Run | Yrd Mat Sub Traps Triggered 2 | . 2 . Indirectly . | . . . Trap Hack Attempts . | . . . Triggered . | . . . Disarmed . | . . . Reprogrammed . | . . . Reused . | . . . Traps Extracted . | . . . Installed . | . . . Triggered . | . . . Machines | -11 -10 -10 ---------- Run | Yrd Mat Sub Machines Disabled . | . . . Max in Single Turn . | . . . Machines Repaired . | . . . Machines Dismantled . | . . . Machines Sabotaged . | . . . Overloaded Fab Kills . | . . . Hacking | -11 -10 -10 --------- Run | Yrd Mat Sub Machines Accessed 5 | . 5 . Terminals 5 | . 5 . Fabricators . | . . . Repair Stations . | . . . Recycling Units . | . . . Scanalyzers . | . . . Garrison Access . | . . . Total Hacks 15 | . 15 . Successful 10 | . 10 . Failed 5 | . 5 . Catastrophic . | . . . Database Lockouts . | . . . Manual 14 | . 14 . Terminals 15 | . 15 . Fabricators . | . . . Repair Stations . | . . . Recycling Units . | . . . Scanalyzers . | . . . Garrison Access . | . . . Terminal Hacks 3 | . 3 . Robot Analysis 1 | . 1 . Locate Traps 2 | . 2 . Fabricator Hacks . | . . . Repair Station Hacks . | . . . Recycling Unit Hacks . | . . . Scanalyzer . | . . . Garrison Access Hacks . | . . . Unauthorized Hacks 7 | . 7 . Terminals 7 | . 7 . Botnet 2 | . 2 . Skim 5 | . 5 . Fabricators . | . . . Repair Stations . | . . . Recycling Units . | . . . Scanalyzers . | . . . Garrison Access . | . . . Data Cores Recovered . | . . . Used . | . . . Hacking Detections 4 | . 4 . Full Trace Events . | . . . Feedback Events . | . . . Feedback Blocked . | . . . Robot Schematics Acquired . | . . . Robots Built . | . . . Authchips . | . . . Time . | . . . Total Robot Build Rating . | . . . Part Schematics Acquired . | . . . Parts Built . | . . . Authchips . | . . . Time . | . . . Total Part Build Rating . | . . . Part Studies Acquired . | . . . Parts Repaired . | . . . Time . | . . . Parts Recycled . | . . . Recycled Matter . | . . . Retrieved Matter . | . . . Retrieved Components . | . . . Parts Scanalyzed . | . . . Part Schematics Acquired . | . . . Parts Damaged . | . . . Bothacking | -11 -10 -10 ------------ Run | Yrd Mat Sub Used RIF Installer . | . . . Robots Hacked . | . . . Non-combat . | . . . Combat . | . . . Robot Hacks Applied . | . . . Relay Couplers Released . | . . . Fabnet Peak Effective % . | . . . Robots Rewired . | . . . Allies Hacked . | . . . Hacks Repelled . | . . . Allies | -11 -10 -10 -------- Run | Yrd Mat Sub Total Allies . | . . . Largest Group . | . . . Highest-Rated Group . | . . . Highest-Rated Ally . | . . . Total Orders . | . . . Ally Attacks . | . . . Total Damage . | . . . Kills . | . . . Allies Corrupted . | . . . Allies Melted . | . . . Intel | -11 -10 -10 ------- Run | Yrd Mat Sub Active Infowar (turns) 87 | . 1 86 Structural 1 | . 1 . Seismic 86 | . . 86 Robot Analysis Total 1 | . 1 . Derelict Logs Recovered . | . . . Drone Launches . | . . . Drone Recoveries . | . . . Exploration | -11 -10 -10 ------------- Run | Yrd Mat Sub Turns Passed 1544 | 97 1309 138 Spaces Moved 712 | 41 620 51 Core 4 | 4 . . Treads 61 | 37 24 . Legs . | . . . Wheels 647 | . 596 51 Hover . | . . . Flight . | . . . Fastest Speed 50 | 50 130 140 Average Speed 144 | 149 144 147 Slowest Speed 160 | 160 160 155 Overloaded Moves . | . . . Propulsion Burnouts . | . . . Robots Hopped . | . . . Potential Cave-ins . | . . . Cave-ins Triggered . | . . . Exploration Rate (%) 33 | 4 88 8 Regions Visited 2 Branch Regions 1 Pre-discovered Areas . | . . . Known Exits Taken . | . . . Unknown Exits Taken 2 | 1 1 . Scrap Searched . | . . . Spaces Dug . | . . . Terrain Destroyed . | . . . Melee . | . . . Projectile . | . . . AOE . | . . . Terrain Rammed . | . . . Walls Destroyed . | . . . Machines Disabled . | . . . Actions | -11 -10 -10 --------- Run | Yrd Mat Sub Total 1081 | 62 933 86 Wait 206 | 5 190 11 Move 710 | 40 619 51 Hop . | . . . Pick Up 35 | 5 29 1 Fast Attach 11 | 6 4 1 Attach 6 | . 4 2 Detach . | . . . Swap 14 | . 11 3 Drop 24 | . 21 3 Fire 75 | 6 55 14 Melee . | . . . Ram . | . . . Kick . | . . . Crush . | . . . Escape Stasis . | . . . Rewire . | . . . Trap . | . . . Miscellaneous . | . . . Route ------- -11/Scrapyard -10/Materials (discovered 5 exits: *Mat x3 / [*Min] / [*Sub]) -10/Subcaves History --------- Turn | Location | Event 8 | -11/Scrapyard | Discovered new exit (range 15) 98 | -11/Scrapyard | Entered Materials 314 | -10/Materials | Build established: Mutant 319 | -10/Materials | Discovered new exit (range 10) 622 | -10/Materials | Discovered new exit (range 10) 793 | -10/Materials | Discovered new exit (range 10) 1039 | -10/Materials | Learned 4 Recycling zone layouts 1088 | -10/Materials | Discovered new exit (range 16) 1114 | -10/Materials | Identified exit to Materials 1272 | -10/Materials | Learned location of 2 exits from Mines 1407 | -10/Materials | Entered Subcaves 1408 | -10/Subcaves | Approached by a straggling Scientist 1430 | -10/Subcaves | Shifting Twisted Machinery released Mak. Light Armor Plating 1430 | -10/Subcaves | Shifting Twisted Machinery released Hvy. Battle Rifle 1509 | -10/Subcaves | Core integrity fell below 50% 1536 | -10/Subcaves | Core integrity fell below 20% 1545 | -10/Subcaves | Destroyed by Y8-BWU(R) with Subdweller Laser Last Messages --------------- 01454_ Subatomizers dissect the Med. Laser. RH-64S(c): "I think it's somewhere west of here" 01464_ Subatomizers dissect the Med. Laser. 01488_ Subatomizers dissect the Lgt. Treads. 01492_ RH-64S(c) destroyed. 01503_ Subatomizers dissect the Lgt. Treads. 01519_ Wheel destroyed. 01519_ Particle Gun destroyed. 01520_ CI-TR5(R) knocked back. 01524_ CI-TR5(R) destroyed. 01526_ Lgt. Treads destroyed. 01527_ ND-PIH(R) knocked back. 01529_ Subatomizers dissect the Lgt. Treads. 01530_ ND-PIH(R) knocked back. 01532_ Critical hit (Destroy). 01532_ Lgt. Ion Engine destroyed. 01536_ ND-PIH(R) knocked back. 01538_ System corrupted: Heat flow error (+148). 01539_ ND-PIH(R) knocked back. 01541_ Subatomizers dissect the Lgt. Treads. Map ----- +----------------------------------------------------+ | ????????????????????????????????????????? ????? | | ???????????????????????????????????????## #????? | | ??????????????????????????????????????## ###??? | | ???????????????????????????? ???????## #??? | | ???????????????????????????? ??????# #??? | | ???????????????????????????? #?????## #??? | | ???????????????????????????# #????## #???? | | ??????????????????????????? ##???# #????? | | ??????????????????????????? #?### #?????? | | ???????????????????????????# #?# ## ##?? | | ???????????????????????????# #?# ## #?? | | ???????????????????###?????# #?# ## #? | | ??????????????????## ###??# #?## ### #? | | ??????????????????? ### ##?## ##?## #? | | ????????????????????# #?## #???? ####? | | ?????????????????????# #?# ##???? ##???? | | ???????????????? ???# #### ##????###????? | | ???????????????? ### ## # # #?????????? | | ???????????? = #??????????? | | ????????????# """""% R #?????????? | | ???????????????"" """"""% #" #?????????? | | ????????????????" "" """ #### #??????? | | ????????????????? "" "" ""#? #??????? | | ???????????????????#""""" " ###? #??????? | | ???????????????????#"" =%R"" #???? # ##??????? | | ???????????????????# " @=[""""##???#####???????? | | ???????????????????## #####*%""""###?????????????? | | ??????????????????????????# """" ##????????????? | | ??????????????????????????## """ ###??????????? | | ???????????????????????????# """" #??????????? | | ???????????????????????????# ##"" #??????????? | | ?????????????????????""""### ## " ###??????????? | | ??????????????????# "" #"## ""??????? | | ???????????????????# """""???????? | | ???????????????????# ## """"""???????? | | ???????????????????## ?# #"#""""???????? | | ????????????????????## "##"##"????????? | | ?????????????????????# " ? ?????????? | | ?????????????????????# "? ????????? | | ???????????????????? ####"" ? ???????? | | ??????????????????? ## #???" ##?###??????? | | ??????????????????? #?# ##???" ???????????? | | ??????????????????? ##??#####?????? "#??????????? | | ?????????????????????????????????????????????????? | | ?????????????????????????????????????????????????? | | ?????????????????????????????????????????????????? | | ?????????????????????????????????????????????????? | | ?????????????????????????????????????????????????? | | ?????????????????????????????????????????????????? | | ?????????????????????????????????????????????????? | +----------------------------------------------------+ Best States ------------- Heat Dissipation 39 Energy Generation 10 Energy Capacity 250 Matter Stores 300 Matter Capacity 300 Sight Range 16 Terrain Scan Density 10 Evasion (%) 40 Recoil Reduction 2 Item Schematics ----------------- None Robot Schematics ------------------ None Fabricated ------------ Nothing Repaired ---------- Nothing Studied --------- None Alien Tech Used ----------------- None Achievements -------------- None Challenges ------------ None Game ------ Seed HardenedHeavyFlightbrick Manual? 0 Play Time 00:07:50 Cumulative 1651.1 hours Start 2026.03.24 @ 23:06:40 End 2026.03.24 @ 23:13:38 Sessions 1 Manual Loads 0 Difficulty Rogue Special Mode None Game No. 1179 Rogue 1139 Adventurer 40 Explorer 0 Win Type - Total 215 Types 99/11/74/2/2/4/16/2/1/4 Lore% 98 Gallery% 96 Achievement% 86 Wizard Run 0 Options --------- Layout 0 ASCII 0 Keyboard 0 Movement Numpad Keybinds 0 Fullscreen 0 Font 20/Terminus Map View 76x50 Zoom Use 0% Tactical HUD 1 Map Filters NONE Filters NONE Steam 1 RUN: 35c969e3-432d-4f67-94a6-5e32c701dc53